bitfinex-derivatives/quotes_BTCF0:USTF0_20250903
["timestamp","ask_amount","ask_price","bid_price","bid_amount"]
[1756927897184,0.08751782,112020.0,112010.0,2.21098282]
[1756927897485,0.08751782,112020.0,112010.0,2.20098282]
[1756927897682,0.08751782,112020.0,112010.0,2.46098282]
[1756927897881,0.07141773,112020.0,112010.0,2.46098282]
[1756927898076,0.07141773,112020.0,112010.0,2.46298282]
[1756927898670,0.07141773,112020.0,112010.0,2.46398282]
[1756927898874,0.02322191,112020.0,112010.0,1.76935617]
[1756927899076,0.02322191,112020.0,112010.0,2.58075617]
[1756927899275,0.02322191,112020.0,112010.0,2.58375617]
[1756927899581,0.02322191,112020.0,112010.0,2.25375617]
[1756927901080,0.02322191,112020.0,112010.0,2.25275617]
[1756927901384,0.02322191,112020.0,112010.0,2.25475617]
[1756927901574,0.02322191,112020.0,112010.0,2.25449923]
[1756927905186,0.02322191,112020.0,112010.0,2.62449923]
[1756927905485,0.02322191,112020.0,112010.0,2.58449923]
[1756927905877,0.02322191,112020.0,112010.0,2.63449923]
[1756927906187,0.02322191,112020.0,112010.0,3.02170888]
[1756927906386,0.02322191,112020.0,112010.0,4.0199214]
[1756927906885,0.02322191,112020.0,112010.0,2.92040262]
[1756927907888,0.02322191,112020.0,112010.0,2.03700262]
[1756927908088,0.02322191,112020.0,112010.0,2.03710262]
[1756927908289,0.02322191,112020.0,112010.0,2.84970262]
[1756927908793,0.0001,112030.0,112020.0,0.0892434]
[1756927909088,0.02242561,112030.0,112020.0,0.81664966]
[1756927909592,0.02242561,112030.0,112020.0,0.89664966]
[1756927909991,0.02242561,112030.0,112020.0,0.96690173]
[1756927910491,0.02242561,112030.0,112020.0,0.89664966]
[1756927910790,0.02242561,112030.0,112020.0,0.88864966]
[1756927911292,0.02242561,112030.0,112020.0,1.12964966]
[1756927911680,0.02242561,112030.0,112020.0,0.88964966]
[1756927913296,0.03676561,112030.0,112020.0,0.88964966]
[1756927914392,0.03676561,112030.0,112020.0,1.70264966]
[1756927915386,0.03676561,112030.0,112020.0,1.70252966]
[1756927915588,0.03676561,112030.0,112020.0,1.77221772]
[1756927915990,0.03676561,112030.0,112020.0,2.05221772]
[1756927916392,0.03676561,112030.0,112020.0,1.23933772]
[1756927916695,0.03676561,112030.0,112020.0,1.77209772]
[1756927917290,0.02242561,112030.0,112020.0,2.42860398]
[1756927918198,0.02242561,112030.0,112020.0,2.06209772]
[1756927918494,0.02242561,112030.0,112020.0,2.42860398]
[1756927919296,0.02242561,112030.0,112020.0,3.1616165]
[1756927921198,0.02242561,112030.0,112020.0,3.4116165]
[1756927923702,0.03676561,112030.0,112020.0,2.5988565]
[1756927923998,0.03676561,112030.0,112020.0,2.31181772]
[1756927924200,0.03676561,112030.0,112020.0,1.24933772]
[1756927924401,0.03676561,112030.0,112020.0,2.06181772]
[1756927924595,0.42792187,112030.0,112020.0,1.24606806]
[1756927924802,0.67792187,112030.0,112020.0,1.17638]
[1756927926203,0.31141561,112030.0,112020.0,1.17638]
[1756927926901,0.31141561,112030.0,112020.0,1.54288626]
[1756927928105,0.03676561,112030.0,112020.0,2.30863592]
[1756927928312,0.03676561,112030.0,112020.0,2.33863592]
[1756927928508,0.03676561,112030.0,112020.0,1.97212966]
[1756927930508,0.03676561,112030.0,112020.0,1.63212966]
[1756927932904,0.03676561,112030.0,112020.0,1.70267454]
[1756927934505,0.03676561,112030.0,112020.0,1.33616828]
[1756927934708,0.03676561,112030.0,112020.0,1.70267454]
[1756927937303,0.05986561,112030.0,112020.0,0.80095114]
[1756927937500,0.05986561,112030.0,112020.0,1.61407114]
[1756927938808,0.10806143,112030.0,112020.0,1.70331454]
[1756927939013,0.10806143,112030.0,112020.0,1.33680828]
[1756927939307,0.10806143,112030.0,112020.0,1.70331454]
[1756927939500,0.10806143,112030.0,112020.0,0.80095114]
[1756927939697,0.10806143,112030.0,112020.0,1.86383114]
[1756927939901,0.10806143,112030.0,112020.0,1.95307454]
[1756927941109,0.10806143,112030.0,112020.0,1.70307454]
[1756927941312,0.10806143,112030.0,112020.0,1.78307454]
[1756927941798,0.10806143,112030.0,112020.0,0.97019454]
[1756927942104,0.10806143,112030.0,112020.0,1.78287454]
[1756927943109,0.10806143,112030.0,112020.0,2.04807454]
[1756927943611,0.07062143,112030.0,112020.0,3.39759332]
[1756927943812,0.02242561,112030.0,112020.0,3.39759332]
[1756927944012,0.02242561,112030.0,112020.0,3.39758842]
[1756927944209,0.08540143,112040.0,112020.0,3.39758842]
[1756927944411,0.10850143,112040.0,112030.0,0.72730626]
[1756927944606,0.10840143,112040.0,112030.0,0.80730626]
[1756927945010,0.10840143,112040.0,112030.0,0.82823552]
[1756927948915,0.06020561,112040.0,112030.0,0.82823552]
[1756927949113,0.06020561,112040.0,112030.0,1.09343552]
[1756927957412,0.06020561,112040.0,112030.0,1.18267102]
[1756927958821,0.03710561,112040.0,112030.0,1.18267102]
[1756927961320,0.03710561,112040.0,112030.0,1.09343552]
[1756927961522,0.06209561,112040.0,112030.0,1.09332079]
[1756927963119,0.06209561,112040.0,112030.0,0.72692926]
[1756927963419,0.06209561,112040.0,112030.0,1.90580079]
[1756927967630,0.06209561,112040.0,112030.0,1.99503629]
[1756927968532,0.06209561,112040.0,112030.0,1.90580079]
[1756927969027,0.06209561,112040.0,112030.0,0.72692926]
[1756927969232,0.42848714,112040.0,112030.0,1.08332079]
[1756927969528,0.42848714,112040.0,112030.0,1.52936926]
[1756927969831,0.67848714,112040.0,112030.0,1.52936926]
[1756927970030,0.67848714,112040.0,112030.0,0.71692926]
[1756927970230,0.72668296,112040.0,112030.0,1.52936926]
[1756927972737,0.72668296,112040.0,112030.0,1.26416926]
[1756927975441,0.72668296,112040.0,112030.0,0.45172926]
[1756927975740,0.72668296,112040.0,112030.0,1.26416926]
[1756927977637,0.72668296,112040.0,112030.0,0.45172926]
[1756927977940,0.72668296,112040.0,112030.0,1.26416926]
[1756927978146,0.36029143,112040.0,112030.0,1.26416926]
[1756927978442,0.72668296,112040.0,112030.0,1.26416926]
[1756927978945,0.74278305,112040.0,112030.0,1.26416926]
[1756927979335,0.49278305,112040.0,112030.0,1.26416926]
[1756927980236,0.49278305,112040.0,112030.0,1.19416926]
[1756927980545,0.49278305,112040.0,112030.0,0.38172926]
[1756927980840,0.49278305,112040.0,112030.0,1.19420926]
[1756927981441,0.12639152,112040.0,112030.0,1.56060079]
[1756927981647,0.10140152,112040.0,112030.0,1.56060079]
[1756927982050,0.08526745,112040.0,112030.0,1.56060079]
[1756927982739,0.08526745,112040.0,112030.0,1.19420926]
[1756927982939,0.08526745,112040.0,112030.0,1.56060079]
[1756927984745,0.08526745,112040.0,112030.0,1.82580079]
[1756927985549,0.08526745,112040.0,112030.0,1.45940926]
[1756927985740,0.08526745,112040.0,112030.0,1.82580079]
[1756927988447,0.08526745,112040.0,112030.0,1.01332079]
[1756927988646,0.08526745,112040.0,112030.0,1.82576079]
[1756927988952,0.03710561,112040.0,112030.0,1.82576079]
[1756927991054,0.03710561,112040.0,112030.0,1.01332079]
[1756927991260,0.03710561,112040.0,112030.0,1.82576079]
[1756927991553,0.06284184,112040.0,112030.0,1.45936926]
[1756927991950,0.08526745,112040.0,112030.0,1.45936926]
[1756927993452,0.08526745,112040.0,112030.0,1.82576079]
[1756927996252,0.07058745,112040.0,112030.0,1.82576079]
[1756927997649,0.08546745,112040.0,112030.0,1.82576079]
[1756927998251,0.11011745,112040.0,112030.0,1.82572079]
[1756928004454,0.08546745,112040.0,112030.0,1.82572079]
[1756928004663,0.03730561,112040.0,112030.0,1.91495619]
[1756928005463,0.06304184,112040.0,112030.0,1.82572079]
[1756928005662,0.08546745,112040.0,112030.0,1.82572079]
[1756928008163,0.08546745,112040.0,112030.0,1.82568079]
[1756928009770,0.08546745,112040.0,112030.0,1.01332079]
[1756928010064,0.08546745,112040.0,112030.0,1.82568079]
[1756928015667,0.08546745,112040.0,112030.0,1.56048079]
[1756928020877,0.08546745,112040.0,112030.0,0.74812079]
[1756928021073,0.10913745,112040.0,112030.0,1.56044079]
[1756928023481,0.10913745,112040.0,112030.0,1.56043522]
[1756928024085,0.10913745,112040.0,112030.0,1.19404926]
[1756928025780,0.10913745,112040.0,112030.0,1.54404926]
[1756928025983,0.10913745,112040.0,112030.0,1.19404926]
[1756928026282,0.10913745,112040.0,112030.0,1.45924926]
[1756928026781,0.06097561,112040.0,112030.0,1.45924926]
[1756928028578,0.10913745,112040.0,112030.0,1.45924926]
[1756928029177,0.07058745,112040.0,112030.0,2.25487062]
[1756928029481,0.04816184,112040.0,112030.0,2.50487062]
[1756928031385,0.04826184,112050.0,112040.0,0.0892274]
[1756928031686,0.04816184,112050.0,112040.0,1.15641336]
[1756928032685,0.04816184,112050.0,112040.0,1.96865336]
[1756928032878,0.06268184,112050.0,112040.0,1.96865336]
[1756928033076,0.0851051,112050.0,112040.0,1.96865336]
[1756928033684,0.0861051,112050.0,112040.0,1.96865336]
[1756928036482,0.02342326,112050.0,112040.0,2.58503932]
[1756928036786,0.02342326,112050.0,112040.0,2.21857336]
[1756928038487,0.02342326,112050.0,112040.0,2.21853336]
[1756928039290,0.02342326,112050.0,112040.0,1.96853336]
[1756928039488,0.02342326,112050.0,112040.0,2.23373336]
[1756928040092,0.02342326,112050.0,112040.0,2.59453336]
[1756928040286,0.02342326,112050.0,112040.0,1.78241336]
[1756928040488,0.02342326,112050.0,112040.0,2.32933336]
[1756928042294,0.02342326,112050.0,112040.0,3.67849124]
[1756928042496,0.001,112050.0,112040.0,3.67849124]
[1756928042691,0.02338186,112050.0,112040.0,2.86637124]
[1756928042994,0.02338186,112050.0,112040.0,3.67845124]
[1756928043695,0.02238186,112050.0,112040.0,3.67845124]
[1756928043896,0.0001,112060.0,112050.0,0.0892195]
[1756928044096,0.01404,112070.0,112050.0,2.34477614]
[1756928044298,0.03771,112070.0,112060.0,1.53922596]
[1756928044495,0.05998736,112070.0,112060.0,1.85922596]
[1756928044997,0.05998736,112070.0,112060.0,0.72718596]
[1756928045199,0.05998736,112070.0,112060.0,1.86922596]
[1756928045800,0.05998736,112070.0,112060.0,1.88922596]
[1756928045992,0.06198736,112070.0,112060.0,1.88922596]
[1756928046688,0.06298736,112070.0,112060.0,1.88922596]
[1756928046885,0.06298736,112070.0,112060.0,1.53918596]
[1756928047091,0.06298736,112070.0,112060.0,1.90824707]
[1756928048703,0.06298736,112070.0,112060.0,0.73624707]
[1756928048893,0.06292463,112070.0,112060.0,1.89820707]
[1756928049196,0.03925463,112070.0,112060.0,1.89820707]
[1756928053005,0.03925463,112070.0,112060.0,2.25261857]
[1756928054201,0.02531463,112070.0,112060.0,2.25261857]
[1756928055005,0.02431463,112070.0,112060.0,2.25261857]
[1756928055195,0.02331463,112070.0,112060.0,2.25261857]
[1756928057406,0.02331463,112070.0,112060.0,2.25249857]
[1756928064424,0.03709463,112070.0,112060.0,1.44065857]
[1756928064620,0.03709463,112070.0,112060.0,2.25241857]
[1756928065521,0.03709463,112070.0,112060.0,1.44065857]
[1756928065823,0.03709463,112070.0,112060.0,2.25237857]
[1756928068124,0.03709463,112070.0,112060.0,2.61317857]
[1756928068625,0.03709463,112070.0,112060.0,1.71224707]
[1756928068827,0.03709463,112070.0,112060.0,2.21392707]
[1756928069027,0.03709463,112070.0,112060.0,2.50392707]
[1756928070723,0.03709463,112070.0,112060.0,2.48392707]
[1756928072527,0.03709463,112070.0,112060.0,4.36940707]
[1756928073030,0.06294184,112070.0,112060.0,4.36940707]
[1756928073523,0.08525647,112070.0,112060.0,4.00302111]
[1756928073829,0.08525647,112070.0,112060.0,4.36940707]
[1756928076028,0.03709463,112070.0,112060.0,4.36940707]
[1756928076230,0.06294184,112070.0,112060.0,4.36940707]
[1756928076431,0.03709463,112070.0,112060.0,4.36940707]
[1756928084423,0.03709463,112070.0,112060.0,4.05928707]
[1756928084631,0.03709463,112070.0,112060.0,4.42928707]
[1756928084829,0.03709463,112070.0,112060.0,4.08928707]
[1756928085440,0.03709463,112070.0,112060.0,4.08902972]
[1756928087236,0.03709463,112070.0,112060.0,3.26746972]
[1756928087540,0.03709463,112070.0,112060.0,4.05898972]
[1756928089744,0.03709463,112070.0,112060.0,4.12898972]
[1756928101859,0.02331463,112070.0,112060.0,4.12898972]
[1756928102649,0.03697463,112070.0,112060.0,3.76286111]
[1756928102854,0.03697463,112070.0,112060.0,2.95134111]
[1756928103053,0.03697463,112070.0,112060.0,4.12886972]
[1756928105755,0.03697463,112070.0,112060.0,3.76274111]
[1756928105955,0.03697463,112070.0,112060.0,4.12886972]
[1756928110450,0.02331463,112070.0,112060.0,4.12886972]
[1756928110754,0.03738463,112070.0,112060.0,4.12886972]
[1756928111358,0.03738463,112070.0,112060.0,3.31746972]
[1756928111661,0.03738463,112070.0,112060.0,4.12882972]
[1756928117759,0.03738463,112070.0,112060.0,4.12878972]
[1756928118864,0.08554647,112070.0,112060.0,4.12878972]
[1756928120060,0.08554647,112070.0,112060.0,3.76266111]
[1756928120262,0.08554647,112070.0,112060.0,2.95134111]
[1756928120466,0.08554647,112070.0,112060.0,4.12874972]
[1756928120668,0.40351324,112070.0,112060.0,2.88134111]
[1756928120862,0.70167508,112070.0,112060.0,3.82262111]
[1756928121163,0.70167508,112070.0,112060.0,2.67708]
[1756928121164,0.65351324,112070.0,112060.0,2.67708]
[1756928121362,0.71780915,112070.0,112060.0,3.41836]
[1756928125870,0.71780915,112070.0,112060.0,2.60708]
[1756928126069,0.71780915,112070.0,112060.0,3.4184]
[1756928127565,0.71780915,112070.0,112060.0,2.24628]
[1756928127772,0.71780915,112070.0,112060.0,1.88548]
[1756928127963,0.71780915,112070.0,112060.0,2.6968]
[1756928128159,0.7338895,112070.0,112060.0,2.6968]
[1756928128872,0.79802339,112070.0,112060.0,2.6968]
[1756928129065,0.71764713,112070.0,112060.0,2.6968]
[1756928135070,0.65351324,112070.0,112060.0,2.6968]
[1756928135869,0.71764713,112070.0,112060.0,2.6968]
[1756928136165,0.65351324,112070.0,112060.0,2.6968]
[1756928138873,0.71764713,112070.0,112060.0,2.6968]
[1756928139774,0.74114713,112070.0,112060.0,0.81132]
[1756928144675,0.74170547,112070.0,112060.0,0.81132]
[1756928145475,0.74197368,112070.0,112060.0,0.81132]
[1756928147078,0.01499,112060.0,112050.0,0.3608]
[1756928147264,0.40588682,112060.0,112050.0,1.1722]
[1756928147468,0.42875979,112060.0,112050.0,1.1722]
[1756928148072,0.49289368,112060.0,112050.0,1.1722]
[1756928149069,0.49289368,112060.0,112050.0,0.3608]
[1756928149269,0.49289368,112060.0,112050.0,1.17216]
[1756928149464,1.59208414,112060.0,112040.0,0.3608]
[1756928149665,1.50507728,112050.0,112040.0,0.3608]
[1756928149870,1.59208414,112050.0,112040.0,1.17216]
[1756928150169,0.01499,112040.0,112030.0,2.2466]
[1756928150477,0.42952219,112040.0,112030.0,3.05796]
[1756928150679,0.45239516,112040.0,112030.0,3.05796]
[1756928150975,0.45239516,112040.0,112030.0,3.0671076]
[1756928151175,0.45239516,112040.0,112030.0,3.05796]
[1756928151579,0.45239516,112040.0,112030.0,3.06678729]
[1756928152180,0.45239516,112040.0,112030.0,3.06682729]
[1756928152477,0.08599834,112040.0,112030.0,3.06682729]
[1756928152677,0.45239516,112040.0,112030.0,3.06682729]
[1756928154179,0.45239516,112040.0,112030.0,3.058]
[1756928154686,0.45239516,112040.0,112030.0,3.06710376]
[1756928155882,0.45239516,112040.0,112030.0,2.25570376]
[1756928156076,0.45239516,112040.0,112030.0,3.06710376]
[1756928158384,0.45239516,112040.0,112030.0,2.25570376]
[1756928158681,0.45239516,112040.0,112030.0,3.06710376]
[1756928162084,0.45239516,112040.0,112030.0,3.05804]
[1756928162385,0.45239516,112040.0,112030.0,3.06676635]
[1756928168987,0.46839368,112040.0,112030.0,3.06676635]
[1756928170083,0.45340368,112040.0,112030.0,3.06676635]
[1756928170288,0.02287297,112040.0,112030.0,3.43316317]
[1756928170589,0.36639682,112040.0,112030.0,3.43316317]
[1756928170788,0.38926979,112040.0,112030.0,3.43316317]
[1756928171288,0.38926979,112040.0,112030.0,2.62172317]
[1756928171483,0.40380979,112040.0,112030.0,3.43316317]
[1756928171789,0.40380979,112040.0,112030.0,3.06676635]
[1756928171986,0.40380979,112040.0,112030.0,2.2496]
[1756928172194,0.40380979,112040.0,112030.0,3.06104]
[1756928172583,0.40380979,112040.0,112030.0,3.06979409]
[1756928173084,0.40380979,112040.0,112030.0,2.25835409]
[1756928173287,0.40380979,112040.0,112030.0,3.06975409]
[1756928173489,0.03741297,112040.0,112030.0,3.06975409]
[1756928173887,0.07867389,112040.0,112030.0,3.06975409]
[1756928174083,0.10154686,112040.0,112030.0,2.2496]
[1756928174288,0.10154686,112040.0,112030.0,3.061]
[1756928174690,0.10154686,112040.0,112030.0,3.06990889]
[1756928175392,0.10154686,112040.0,112030.0,2.25850889]
[1756928175585,0.10154686,112040.0,112030.0,3.06990889]
[1756928176994,0.10154686,112040.0,112030.0,2.2496]
[1756928177193,0.10154686,112040.0,112030.0,3.061]
[1756928177896,0.10154686,112040.0,112030.0,2.2496]
[1756928178097,0.10154686,112040.0,112030.0,3.061]
[1756928178396,0.46794368,112040.0,112030.0,3.061]
[1756928178985,0.45199951,112040.0,112030.0,3.061]
[1756928182304,0.45199951,112040.0,112030.0,2.2496]
[1756928182500,0.46794368,112040.0,112030.0,2.2496]
[1756928182691,0.74286368,112040.0,112030.0,0.003]
[1756928182898,1.42025946,112040.0,112030.0,0.63028]
[1756928183095,1.50063572,112040.0,112030.0,0.63028]
[1756928183299,0.03946,112030.0,112020.0,0.0001]
[1756928183497,0.78952979,112030.0,112020.0,0.8115]
[1756928183697,0.87229635,112030.0,112020.0,0.8115]
[1756928183897,1.97148681,112030.0,112020.0,0.8115]
[1756928185002,1.97148681,112030.0,112020.0,0.0001]
[1756928185204,1.95528879,112030.0,112020.0,0.0001]
[1756928185502,1.95728879,112030.0,112020.0,0.0001]
[1756928185699,1.95828879,112030.0,112020.0,0.0001]
[1756928188794,2.20828879,112030.0,112020.0,0.0001]
[1756928190404,2.14411055,112030.0,112020.0,0.0001]
[1756928190805,0.03946,112010.0,112000.0,0.3609]
[1756928191000,0.45393367,112010.0,112000.0,1.17228]
[1756928191209,0.47680664,112010.0,112000.0,1.17228]
[1756928191707,0.47680664,112010.0,112000.0,0.81148]
[1756928192208,0.47780664,112010.0,112000.0,0.81148]
[1756928194409,0.48665988,112010.0,112000.0,0.81148]
[1756928195201,0.03946,112000.0,111990.0,0.3609]
[1756928195406,0.79512661,112000.0,111990.0,0.3608]
[1756928195801,0.79512661,112000.0,111990.0,1.17232]
[1756928196205,0.79512661,112000.0,111990.0,0.81152]
[1756928196410,0.42872979,112000.0,111990.0,0.81152]
[1756928196712,0.42872979,112000.0,111990.0,0.81252]
[1756928197807,0.84320346,112000.0,111990.0,0.81252]
[1756928198013,0.84320346,112000.0,111990.0,0.81352]
[1756928206728,0.84420346,112000.0,111990.0,0.81252]
[1756928207529,0.47824688,112000.0,111990.0,0.81152]
[1756928207728,0.48024688,112000.0,111990.0,0.81152]
[1756928208729,0.47824688,112000.0,111990.0,0.81152]
[1756928208929,0.49527249,112000.0,111990.0,0.81152]
[1756928210033,0.49427249,112000.0,111990.0,0.81152]
[1756928210226,0.49427249,112000.0,111990.0,0.81162]
[1756928212035,0.49427249,112000.0,111990.0,0.0001]
[1756928212333,0.43017003,112000.0,111990.0,0.81174]
[1756928214937,0.43017003,112000.0,111990.0,0.0001]
[1756928215142,0.43017003,112000.0,111990.0,0.81174]
[1756928216344,0.51054629,112000.0,111990.0,0.81174]
[1756928218238,0.51054629,112000.0,111990.0,0.76349181]
[1756928219036,0.51054629,112000.0,111980.0,0.3609]
[1756928219343,0.40491706,111990.0,111980.0,0.3609]
[1756928219542,0.42779003,111990.0,111980.0,1.17244]
[1756928219738,0.42779003,111990.0,111980.0,0.3608]
[1756928220245,0.49200454,111990.0,111980.0,1.17344]
[1756928220738,0.8588416,111990.0,111980.0,0.3628]
[1756928220944,0.79462709,111990.0,111980.0,1.17444]
[1756928221143,0.79462709,111990.0,111980.0,1.17344]
[1756928221344,0.79462709,111990.0,111980.0,0.3628]
[1756928221541,1.52830121,111990.0,111980.0,0.3628]
[1756928221844,1.52830121,111990.0,111980.0,0.81264]
[1756928222031,1.52930121,111990.0,111980.0,0.81264]
[1756928222238,1.52930121,111990.0,111980.0,0.001]
[1756928222433,1.52930121,111990.0,111970.0,0.0001]
[1756928222434,0.01444,111980.0,111970.0,0.0001]
[1756928222737,0.48524883,111980.0,111970.0,0.81164]
[1756928222942,0.5081218,111980.0,111970.0,0.81164]
[1756928225445,0.42779003,111980.0,111970.0,0.81164]
[1756928225750,0.42879003,111980.0,111970.0,0.81164]
[1756928227542,0.50150963,111980.0,111970.0,0.81164]
[1756928228346,0.56571556,111980.0,111970.0,0.81164]
[1756928228846,0.50150963,111980.0,111970.0,0.81164]
[1756928229047,0.56570693,111980.0,111970.0,0.81164]
[1756928229846,0.56570693,111980.0,111960.0,2.24746]
[1756928230047,0.42863935,111970.0,111960.0,2.24746]
[1756928230247,0.45151232,111970.0,111960.0,3.05904]
[1756928231448,0.45151232,111970.0,111960.0,3.06004]
[1756928231650,0.45151232,111970.0,111960.0,2.24836]
[1756928231948,1.55894513,111970.0,111960.0,0.3618]
[1756928232161,1.62314243,111970.0,111960.0,0.81268]
[1756928232346,1.63220649,111970.0,111960.0,0.81268]
[1756928232950,1.63220649,111970.0,111960.0,0.81368]
[1756928238751,1.63220649,111970.0,111960.0,0.81372]
[1756928238951,1.63220649,111970.0,111960.0,0.81382]
[1756928241256,1.56800919,111970.0,111960.0,0.81382]
[1756928245651,1.56770765,111970.0,111960.0,0.81382]
[1756928246049,1.92850765,111970.0,111960.0,0.81382]
[1756928246244,1.99270495,111970.0,111960.0,0.81382]
[1756928247062,1.99270495,111970.0,111960.0,0.0021]
[1756928251559,1.92850765,111970.0,111960.0,0.0021]
[1756928252463,2.00883942,111970.0,111960.0,0.0021]
[1756928252666,2.31883942,111970.0,111960.0,0.0021]
[1756928256856,2.23850765,111970.0,111960.0,0.0021]
[1756928258967,0.01472,111960.0,111950.0,1.17262]
[1756928259166,1.85632337,111960.0,111950.0,1.17252]
[1756928259464,1.8788948,111960.0,111950.0,1.17252]
[1756928260265,1.8788948,111960.0,111950.0,1.17452]
[1756928260463,1.8788948,111960.0,111950.0,1.17652]
[1756928261265,1.81463967,111960.0,111950.0,1.17652]
[1756928263766,1.87894751,111960.0,111950.0,1.17652]
[1756928264566,0.77843633,111960.0,111950.0,1.17652]
[1756928264762,0.41159927,111960.0,111950.0,1.42652]
[1756928264969,0.77843633,111960.0,111950.0,1.42652]
[1756928267576,0.80172773,111960.0,111950.0,0.6148]
[1756928267783,0.80172773,111960.0,111950.0,1.42644]
[1756928268979,0.73741989,111960.0,111950.0,1.42644]
[1756928270289,0.73741989,111960.0,111950.0,0.6148]
[1756928270481,0.73741989,111960.0,111950.0,1.4264]
[1756928273183,0.73741989,111960.0,111950.0,0.6148]
[1756928273382,0.73741989,111960.0,111950.0,1.4264]
[1756928275088,0.73741989,111960.0,111950.0,0.6148]
[1756928275386,1.90272311,111960.0,111950.0,0.3648]
[1756928275582,1.90272311,111960.0,111950.0,1.17636]
[1756928275787,1.59272311,111960.0,111950.0,1.17636]
[1756928279892,0.12472927,111960.0,111950.0,1.17636]
[1756928280092,1.59272311,111960.0,111950.0,1.17646]
[1756928283997,1.59272311,111960.0,111950.0,0.3649]
[1756928284186,1.59272311,111960.0,111950.0,1.17642]
[1756928288093,0.12472927,111960.0,111950.0,1.17642]
[1756928288288,1.59272311,111960.0,111950.0,1.17642]
[1756928293704,1.59272311,111960.0,111950.0,0.3649]
[1756928294502,1.59272311,111960.0,111950.0,1.1763]
[1756928295500,1.59272311,111960.0,111950.0,0.8155]
[1756928295696,1.59272311,111960.0,111950.0,1.1763]
[1756928296505,2.23699032,111960.0,111950.0,0.0041]
[1756928296703,0.03727,111950.0,111940.0,0.0001]
[1756928296900,0.03727,111940.0,111930.0,0.3609]
[1756928297105,0.45250238,111940.0,111930.0,1.1722]
[1756928297305,0.84207227,111940.0,111930.0,0.3608]
[1756928297496,0.47507381,111940.0,111930.0,1.1722]
[1756928297696,0.42683989,111940.0,111930.0,1.1722]
[1756928298906,0.49115325,111940.0,111930.0,1.1752]
[1756928299305,0.49115325,111940.0,111930.0,1.1782]
[1756928302304,0.86115325,111940.0,111930.0,1.1782]
[1756928304210,0.86120504,111940.0,111930.0,0.8174]
[1756928304410,0.86120504,111940.0,111930.0,1.1782]
[1756928308615,0.86120504,111940.0,111930.0,0.3668]
[1756928308910,0.84502572,111940.0,111930.0,1.1782]
[1756928310720,0.47802726,111940.0,111930.0,1.1782]
[1756928310903,0.84502572,111940.0,111930.0,1.4282]
[1756928311715,0.84501495,111940.0,111930.0,1.4282]
[1756928312717,0.47801649,111940.0,111930.0,1.4282]
[1756928312914,0.84501495,111940.0,111930.0,1.4282]
[1756928315618,0.82189495,111940.0,111930.0,1.4282]
[1756928315817,0.82189495,111940.0,111930.0,1.4283]
[1756928316522,0.84501495,111940.0,111930.0,0.3669]
[1756928316705,0.84501495,111940.0,111930.0,1.17826]
[1756928317521,1.21201341,111940.0,111930.0,0.3669]
[1756928317711,1.21201341,111940.0,111930.0,1.17826]
[1756928318019,0.84501495,111940.0,111930.0,1.17826]
[1756928323118,0.79688091,111940.0,111930.0,1.17826]
[1756928324223,0.79688091,111940.0,111930.0,0.3669]
[1756928324420,0.79688091,111940.0,111930.0,1.17822]
[1756928325124,0.86119427,111940.0,111930.0,1.17822]
[1756928327422,0.86143737,111940.0,111930.0,1.17822]
[1756928327824,1.9470629,111940.0,111930.0,0.0061]
[1756928328029,2.62823554,111940.0,111930.0,0.0061]
[1756928328222,0.03864,111930.0,111920.0,0.0001]
[1756928328422,1.91186838,111930.0,111920.0,0.81375]
[1756928328724,1.93448083,111930.0,111920.0,0.81375]
[1756928329521,1.93448083,111930.0,111920.0,0.81775]
[1756928329721,1.93448083,111930.0,111920.0,0.82175]
[1756928331827,1.93448083,111930.0,111920.0,0.01047]
[1756928332022,1.93448083,111930.0,111920.0,0.82171]
[1756928332432,1.93448083,111930.0,111920.0,0.82175]
[1756928334534,1.93481743,111930.0,111920.0,0.82175]
[1756928334832,0.46585119,111930.0,111920.0,0.82175]
[1756928335135,1.93481743,111930.0,111920.0,0.01047]
[1756928335434,1.93481743,111930.0,111920.0,0.82171]
[1756928338238,1.87055529,111930.0,111920.0,0.82171]
[1756928339031,1.91869772,111930.0,111920.0,0.82171]
[1756928344044,1.91869772,111930.0,111920.0,0.01047]
[1756928344245,1.91869772,111930.0,111920.0,0.82167]
[1756928345045,1.91869772,111930.0,111920.0,0.01047]
[1756928345246,1.91869772,111930.0,111920.0,0.82167]
[1756928346248,1.91869772,111930.0,111920.0,0.01047]
[1756928346445,1.91869772,111930.0,111920.0,0.82167]
[1756928347046,1.87055529,111930.0,111920.0,0.82167]
[1756928347247,1.87055529,111930.0,111920.0,0.82177]
[1756928348243,1.93481743,111930.0,111920.0,0.82177]
[1756928351149,1.87055529,111930.0,111920.0,0.82177]
[1756928353256,1.87055529,111930.0,111920.0,0.0081]
[1756928353751,1.87055529,111930.0,111920.0,0.81922]
[1756928354053,1.95088706,111930.0,111920.0,0.81922]
[1756928354440,1.95088706,111930.0,111920.0,0.0081]
[1756928354644,1.93477766,111930.0,111920.0,0.81922]
[1756928358954,1.87055529,111930.0,111920.0,0.81922]
[1756928359354,1.93477766,111930.0,111920.0,0.81922]
[1756928362257,1.97542731,111930.0,111920.0,0.81914]
[1756928364956,1.97542731,111930.0,111920.0,0.0081]
[1756928365156,1.97542731,111930.0,111920.0,0.81914]
[1756928366258,1.91120494,111930.0,111920.0,0.82161]
[1756928366853,1.91120494,111930.0,111920.0,0.81914]
[1756928369163,1.91120494,111930.0,111920.0,0.82161]
[1756928371058,1.91120494,111930.0,111920.0,0.81914]
[1756928371251,2.27200494,111930.0,111920.0,0.0081]
[1756928371456,0.03726,111920.0,111910.0,0.81353]
[1756928371657,0.84876884,111920.0,111910.0,0.81343]
[1756928371961,1.23251789,111920.0,111910.0,0.81343]
[1756928373463,1.24248234,111920.0,111910.0,0.81343]
[1756928374459,1.24348234,111920.0,111910.0,0.81343]
[1756928375565,1.31476903,111920.0,111910.0,0.81343]
[1756928380962,0.94752747,111920.0,111910.0,0.81343]
[1756928381163,0.95396903,111920.0,111910.0,0.81343]
[1756928387571,0.95396903,111920.0,111910.0,0.00247]
[1756928387776,0.95396903,111920.0,111910.0,0.81339]
[1756928388276,0.95396903,111920.0,111910.0,1.17419]
[1756928388574,0.46746128,111920.0,111910.0,1.90153706]
[1756928388874,0.40494905,111920.0,111910.0,1.90153706]
[1756928389078,0.82033284,111920.0,111910.0,1.5342955]
[1756928389475,0.82031777,111920.0,111910.0,1.5342955]
[1756928389876,0.49229128,111920.0,111910.0,1.4449211]
[1756928390076,0.49229128,111920.0,111910.0,1.4450211]
[1756928390476,0.85951777,111920.0,111910.0,0.3841411]
[1756928390671,0.85951777,111920.0,111910.0,0.0233411]
[1756928390871,0.87564282,111920.0,111910.0,0.0001]
[1756928391078,1.17217554,111920.0,111910.0,0.81094]